[Event "Bangabandhu Premier Div League 2022"]
[Site "Dhaka"]
[Date "2022.12.04"]
[Round "5.8"]
[White "Idani, Pouya"]
[Black "Zia, Tahsin Tajwar"]
[Result "1-0"]
[ECO "B13"]
[WhiteElo "2631"]
[BlackElo "2241"]
[Annotator "TA"]
[PlyCount "65"]
[EventDate "2022.11.30"]
[EventType "team-tourn"]
[EventCountry "BAN"]
[SourceTitle "playchess.com"]
[Source "ChessBase"]
[SourceQuality "1"]
[TimeControl "40/5400+30:1800+30"]

{[%evp 24,65,20,20,22,20,20,20,28,20,41,52,59,57,52,44,66,54,60,58,76,70,109,98,211,214,206,208,221,206,235,233,306,303,521,491,648,654,626,565,562,526,946,931]} 1. e4 {[%emt 0:00:02]} c6 {[%emt 0:00:19]} 2. d4 {[%emt 0:00:06]} d5 {[%emt 0:00:05]} 3. exd5 {[%emt 0:00:03]} cxd5 {[%emt 0:00:07]} 4. Bd3 {[%emt 0:00:04]} Nc6 {[%emt 0:00:43]} 5. c3 {[%emt 0:00:05]} Nf6 {[%emt 0:02:26]} 6. Bf4 {[%emt 0:00:32]} Bg4 {[%emt 0:00:43]} 7. Qb3 {[%emt 0:00:07]} Qd7 {[%emt 0:00:12]} 8. Nd2 {[%emt 0:00:05]} e6 {[%emt 0:00:16]} 9. Ngf3 {[%emt 0:00:05]} Bd6 {[%emt 0:00:58]} 10. Bxd6 {[%emt 0:00:05]} Qxd6 {[%emt 0:00:05]} 11. O-O {[%emt 0:00:07]} O-O {[%emt 0:00:13]} 12. Rfe1 {[%emt 0:00:05]} Bxf3 {[%emt 0:00:50]} 13. Nxf3 {[%emt 0:00:05]} Qc7 {[%emt 0:00:13] now scores much better than the old 13...Rab8. B13: Caro-Kann: Exchange Variation and Panov-Botvinnik Attack.} 14. Qd1 $5 {[%emt 0:02:28][%mdl 4] Exploring less charted territory.} Rab8 {[%emt 0:01:19]} 15. Qe2 {[%emt 0:01:21]} a6 {[%emt 0:01:37] The position is equal.} 16. g3 {[%emt 0:01:00] [#]} b5 $146 {[%emt 0:01:13]} ({Predecessor:} 16... Rfd8 17. h4 Rbc8 18. a4 Re8 19. Kg2 h6 20. Qe3 Ng4 21. Qd2 Na5 22. Qc2 Nc4 {½-½ (63) Kuhn,C (2155)-Thomas,T (2121) ICCF email 2019}) 17. b4 {[%emt 0:00:26]} Ne7 {[%emt 0:06:31][%cal Bc6e7,Be7c8,Bc8d6,Bd6c4][%mdl 32]} 18. Rec1 {[%emt 0:00:39]} Nc8 {[%emt 0:01:02]} 19. Nd2 {[%emt 0:02:08]} Nd6 {[%emt 0:11:57]} 20. Nb3 {[%emt 0:00:27]} Nd7 {[%emt 0:01:37]} 21. a4 {[%emt 0:04:12]} Nc4 {[%emt 1:08:34]} 22. Nc5 {[%emt 1:27:18]} Nxc5 {[%emt 0:00:00]} 23. dxc5 {[%emt 0:00:30]} ({Don't do} 23. bxc5 e5 $14) 23... e5 {[%emt 0:01:00]} (23... Rfd8 $16) 24. axb5 $40 {[%emt 0:00:00][%mdl 128] White has strong attack.} axb5 {[%emt 0:00:00]} 25. Bxc4 {[%emt 0:00:00]} bxc4 {[%emt 0:00:00]} 26. Ra6 {[%emt 0:00:00][%cal Ba1a6,Ba6a7,Ba7a8][%mdl 32] Black must now prevent Rd6.} Rfd8 {[%emt 0:00:00] Against Rd6} 27. Rca1 {[%emt 0:00:00]} e4 {[%emt 0:00:00]} 28. Qe3 {[%emt 0:00:00]} d4 $2 {[%emt 0:00:00] [#]} (28... h5 29. c6 Re8) 29. Qxe4 {[%emt 0:00:00] White is clearly winning.} dxc3 {[%emt 0:00:00]} 30. Ra7 {[%emt 0:00:00]} Qc8 {[%emt 0:00:00]} 31. Qxc4 {[%emt 0:00:00]} Qf5 {[%emt 0:00:00]} 32. Qxc3 {[%emt 0:00:00]} Rd3 {[%emt 0:00:00] [#]} 33. Ra8 $1 {[%emt 0:00:00] Weighted Error Value: White=0.06 (flawless) /Black=0.45} 1-0

[Event "Bangabandhu Premier Div League 2022"]
[Site "Dhaka"]
[Date "2022.12.04"]
[Round "5.8"]
[White "Mohammad Nubairshah Shaikh"]
[Black "Jannatul, Ferdous"]
[Result "1-0"]
[ECO "E01"]
[WhiteElo "2439"]
[BlackElo "1861"]
[Annotator "TA"]
[PlyCount "57"]
[EventDate "2022.12.01"]
[EventCountry "BAN"]
[SourceTitle "playchess.com"]
[Source "ChessBase"]
[SourceQuality "1"]
[TimeControl "40/5400+30:1800+30"]

{[%evp 16,57,31,25,29,31,24,24,28,27,24,19,30,24,121,125,136,131,131,122,106,109,112,101,166,105,181,192,415,405,407,337,379,184,170,191,1332,1327,1281,1318,1294,1290,1281,1262]} 1. c4 {[%emt 0:06:24]} e6 {[%emt 0:00:09]} 2. Nf3 {[%emt 0:02:41]} Nf6 {[%emt 0:00:09]} 3. g3 {[%emt 0:00:21]} d5 {[%emt 0:00:32]} 4. Bg2 {[%emt 0:00:02]} c6 {[%emt 0:00:39]} 5. b3 {[%emt 0:01:23]} Bd6 {[%emt 0:00:15]} 6. Bb2 {[%emt 0:00:02]} O-O {[%emt 0:00:33]} 7. O-O {[%emt 0:00:15]} Nbd7 {[%emt 0:01:12]} 8. d4 {[%emt 0:03:25]} Re8 {[%emt 0:04:37]} 9. Nbd2 {[%emt 0:01:52]} b6 {[%emt 1:26:54] E01: Catalan: Early deviations.} 10. Qc2 {[%emt 0:10:58]} Bb7 {[%emt 0:00:30]} 11. e4 {[%emt 0:00:38]} dxe4 {[%emt 0:00:00] White has an edge.} 12. Ng5 {[%emt 0:09:07]} Qc7 {[%emt 0:00:00] [#]} 13. Rad1 $146 {[%emt 0:59:52]} ({Predecessor:} 13. Ndxe4 Nxe4 14. Nxe4 Be7 15. Rad1 Rad8 16. Rfe1 Nf6 17. Nc3 Rd7 18. Rd2 Red8 19. Red1 {1-0 (48) Calens,D (2039)-Remolcoy,L (1968) Vicente Lopez 2016}) 13... Rad8 {[%emt 0:00:00]} (13... Be7 {simplifies} 14. Ngxe4 c5 15. Nxf6+ Nxf6 16. Bxb7 Qxb7 17. dxc5 bxc5 18. Bc3 Qc6) 14. Ndxe4 {[%emt 0:00:30]} (14. Ngxe4 {simplifies} Nxe4 15. Nxe4 Be7 16. Rfe1) 14... Be7 {[%emt 0:02:00] [#] Prevents d5.} (14... Nxe4 $11 15. Nxe4 (15. Bxe4 f5 $14) (15. Qxe4 Nf6 $11) 15... Be7) 15. Nxf7 $1 $16 {[%emt 0:00:30][%mdl 512]} Kxf7 {[%emt 0:00:00]} 16. Ng5+ {[%emt 0:00:00][%mdl 64] Discovered Attack, Deflection, Double Attack} Kg8 {[%emt 0:00:00] Threatens to win with ...Nf8.} 17. Nxe6 {[%emt 0:00:00]} Qd6 {[%emt 0:01:30]} 18. Nxd8 {[%emt 0:00:00] White has more active pieces.} Bxd8 {[%emt 0:00:00]} 19. Rfe1 {[%emt 0:02:00]} Rf8 {[%emt 0:00:00]} (19... Nf8 $16) 20. Re2 {[%emt 0:00:30]} (20. Bh3 $18) 20... Ng4 {[%emt 0:00:00]} (20... Rf7 $16 {is a better defense.} 21. Rde1 Nf8) 21. Rde1 {[%emt 0:00:30]} Ndf6 $2 {[%emt 0:00:00]} (21... Qh6 $2 22. h3 Ngf6 23. Ba3 $18) (21... Ngf6 {might work better.} 22. Re6 Qc7) 22. Re6 $18 {[%emt 0:00:00]} Qd7 {[%emt 0:00:00]} 23. h3 {[%emt 0:01:00] Prevents c5.} Nh6 {[%emt 0:00:00]} 24. Bc1 {[%emt 0:00:00]} (24. Ba3 $142) 24... Nf7 {[%emt 0:00:00]} 25. Ba3 {[%emt 0:01:00] Prevents c5.} Re8 $2 {[%emt 0:00:00] Prevents h4.} (25... Ng5 26. R6e5 Nxh3+ 27. Bxh3 Qxh3 28. Bxf8 Kxf8) 26. Rxe8+ {[%emt 0:00:00] White is clearly winning.} Nxe8 {[%emt 0:00:00] [#]} 27. Qf5 $3 {[%emt 0:00:00][%mdl 512]} Bc8 {[%emt 0:00:00] [#]} 28. Bxc6 $3 {[%emt 0:00:00][%mdl 512]} Qxc6 {[%emt 0:00:52] [#]} 29. Qxc8 $3 {[%emt 0:00:00][%mdl 576] Black got outplayed after the opening.   Weighted Error Value: White=0.17 (very precise) /Black=0.44} 1-0

[Event "Bangabandhu Premier Div League 2022"]
[Site "Dhaka"]
[Date "2022.12.04"]
[Round "5.9"]
[White "Abu Sufian, Shakil"]
[Black "Mohammed Abdul, Malek"]
[Result "1-0"]
[ECO "B00"]
[WhiteElo "2229"]
[BlackElo "2152"]
[Annotator "TA"]
[PlyCount "91"]
[EventDate "2022.11.30"]
[EventType "team-tourn"]
[EventCountry "BAN"]
[SourceTitle "playchess.com"]
[Source "ChessBase"]
[SourceQuality "1"]
[TimeControl "40/5400+30:1800+30"]

{[%evp 9,91,35,37,20,71,64,72,75,77,68,98,87,83,79,70,70,87,78,89,81,83,63,92,83,139,139,131,120,119,106,106,98,118,89,109,98,108,121,145,139,162,103,143,103,108,106,89,102,93,90,101,79,94,89,101,108,178,143,172,101,147,139,170,160,212,152,250,236,225,141,362,182,191,182,370,333,489,485,939,939,29987,29988,29995,29996]} 1. e4 {[%emt 0:00:04]} b6 {[%emt 0:00:08]} 2. d4 {[%emt 0:00:27]} Bb7 {[%emt 0:00:07]} 3. Bd3 {[%emt 0:00:33]} e6 {[%emt 0:00:18]} 4. Nf3 {[%emt 0:00:29]} d5 {[%emt 0:01:33]} 5. e5 {[%emt 0:02:49]} c5 {[%emt 0:00:22]} 6. c3 {[%emt 0:00:34][%cal Bc2c3,Bc3d4][%mdl 32] B00: Queen's Fianchetto Defence, Nimzowitsch Defence.} cxd4 {[%emt 0:02:43]} (6... Ne7 $11) 7. cxd4 $16 {[%emt 0:04:59]} Ne7 {[%emt 0:00:22] [#]} 8. O-O $146 {[%emt 0:00:50] White is more active. White is better.} ({Predecessor:} 8. Ng5 g6 9. Qf3 Nf5 10. g4 Nh6 11. h4 Nc6 12. Be3 Qe7 13. Nc3 O-O-O 14. Nb5 {1-0 (36) Labena Bernal,A (2003)-Garcia Paolicchi,R (2233) Pamplona 2006}) 8... Nec6 {[%emt 0:00:08]} 9. a3 {[%emt 0:02:47]} Nd7 {[%emt 0:02:53]} 10. Nc3 {[%emt 0:00:25]} a6 {[%emt 0:01:42]} 11. Be3 {[%emt 0:05:53]} Be7 {[%emt 0:04:24] Prevents Ng5.} 12. Ne2 {[%emt 0:02:18]} Na5 {[%emt 0:06:37]} 13. Nd2 {[%emt 0:08:52]} Rc8 {[%emt 0:01:48]} 14. b3 {[%emt 0:00:55] Inhibits Nc4.} O-O {[%emt 0:00:44]} 15. f4 {[%emt 0:01:57][%cal Bf2f4,Bf4e5][%mdl 32]} f6 {[%emt 0:04:44]} 16. Nf3 {[%emt 0:01:46]} (16. f5 {keeps more tension.} exf5 17. e6 Ne5 18. Bxf5 Ng6 19. Qb1) 16... fxe5 {[%emt 0:05:18]} (16... b5 $142) 17. fxe5 {[%emt 0:00:31] Threatens to win with Nf4.} Rf7 {[%emt 0:00:19]} 18. Nf4 {[%emt 0:07:55]} Nf8 {[%emt 0:00:05]} 19. Bd2 {[%emt 0:00:41]} b5 {[%emt 0:02:48][%cal Oa5c4]} 20. h4 {[%emt 0:04:40]} Qb6 {[%emt 0:02:31][%cal Oa5c4]} 21. g3 {[%emt 0:03:21]} Nc6 {[%emt 0:19:38][%cal Oc6e5]} 22. Be3 {[%emt 0:09:53]} b4 {[%emt 0:03:27]} 23. a4 {[%emt 0:00:18]} Na5 {[%emt 0:00:35]} 24. Rb1 {[%emt 0:01:29]} Rc3 {[%emt 0:01:41]} 25. Ne2 {[%emt 0:00:45]} ({White should try} 25. Bd2 $18) 25... Rc8 {[%emt 0:01:24][%cal Oa5c4]} 26. Ng5 {[%emt 0:04:24]} Bxg5 {[%emt 0:00:26]} 27. Bxg5 {[%emt 0:00:18] Strongly threatening Rxf7.} Rxf1+ {[%emt 0:01:40]} 28. Qxf1 {[%emt 0:00:40] aiming for Be7.} Nd7 {[%emt 0:01:51]} 29. Qf2 {[%emt 0:01:06] And now Be7 would win.} Rf8 {[%emt 0:04:59] [#]} 30. Qe3 {[%emt 0:00:13]} Rf7 {[%emt 0:01:30] Against Be7} 31. Bf4 {[%emt 0:03:53]} Nf8 {[%emt 0:01:08]} 32. h5 {[%emt 0:00:24]} Bc6 {[%emt 0:09:16]} (32... Nc6 $16) 33. Kh2 {[%emt 0:01:59]} Be8 {[%emt 0:00:30]} 34. g4 {[%emt 0:00:52]} (34. h6 $18) 34... Nc6 {[%emt 0:03:37]} ({Black should play} 34... Nxb3 35. Rxb3 Bxa4) 35. Rc1 {[%emt 0:01:55]} Rc7 {[%emt 0:02:58]} 36. Bg5 {[%emt 0:05:00]} Nd7 {[%emt 0:02:07]} (36... h6 $16) 37. Bb1 {[%emt 0:01:31]} Bf7 {[%emt 0:04:22]} (37... h6 $16 {might work better.}) 38. Kg3 {[%emt 0:01:17]} ({Don't play} 38. Qd3 $6 Nf8 39. Qc2 Rc8) 38... Nf8 {[%emt 0:01:15]} 39. Qd3 {[%emt 0:01:35]} g6 $2 {[%emt 0:00:45] This costs Black the game.} (39... h6 $16) 40. h6 {[%emt 0:01:00]} (40. Qd2 $142) 40... Nd7 $18 {[%emt 0:05:04]} 41. Qe3 {[%emt 0:33:59]} a5 $2 {[%emt 0:31:37]} (41... Rc8 42. Qf2 Rf8) 42. Bd3 {[%emt 0:03:01]} Nf8 {[%emt 0:00:00]} (42... Qb8 $142 43. Bb5 Qc8) 43. Bb5 {[%emt 0:00:00] [#] Hoping for Bxc6.} Nd7 {[%emt 0:00:00]} (43... Qb7 $142 44. Qf4 Be8) 44. Qf4 {[%emt 0:00:00] Intending Bxc6 and mate.} Rc8 {[%emt 0:01:42]} 45. Bxc6 {[%emt 0:00:00]} Rxc6 {[%emt 0:00:19]} 46. Rf1 {[%emt 0:00:00] Weighted Error Value: White=0.19 (very precise) /Black=0.45} 1-0

[Event "Bangabandhu Premier Div League 2022"]
[Site "Dhaka"]
[Date "2022.12.04"]
[Round "5.10"]
[White "Muthaiah AL"]
[Black "Ghosh, Diptayan"]
[Result "1/2-1/2"]
[ECO "D02"]
[WhiteElo "2454"]
[BlackElo "2544"]
[Annotator "TA"]
[PlyCount "60"]
[EventDate "2022.11.30"]
[EventType "team-tourn"]
[EventCountry "BAN"]
[SourceTitle "playchess.com"]
[Source "ChessBase"]
[SourceQuality "1"]
[TimeControl "40/5400+30:1800+30"]

{[%evp 9,60,-12,7,7,2,10,11,14,8,7,8,10,14,12,11,4,10,7,10,0,13,7,14,8,8,5,7,4,14,11,21,0,0,0,3,0,0,0,0,0,0,-5,-5,-6,-6,-6,-6,-14,-15,-17,-16,-19,-18]} 1. d4 {[%emt 0:00:08]} Nf6 {[%emt 0:00:24]} 2. Bf4 {[%emt 0:00:26]} d5 {[%emt 0:00:10]} 3. e3 {[%emt 0:00:29]} c5 {[%emt 0:00:05]} 4. Nf3 {[%emt 0:00:31]} Nc6 {[%emt 0:00:13]} 5. Nbd2 {[%emt 0:00:30]} Bg4 {[%emt 0:00:15] The position is equal.} 6. h3 {[%emt 0:01:16] D02: 1 d4 d5 2 Nf3 sidelines, including 2...Nf6 3 g3 and 2...Nf6 3 Bf4.} Bxf3 {[%emt 0:01:12]} 7. Nxf3 {[%emt 0:00:15]} e6 {[%emt 0:00:04]} 8. Be2 {[%emt 0:01:03]} Bd6 {[%emt 0:00:17]} 9. dxc5 {[%emt 0:00:33]} Bxf4 {[%emt 0:00:11]} 10. exf4 {[%emt 0:00:09]} Qa5+ {[%emt 0:00:09]} 11. c3 {[%emt 0:00:32]} Qxc5 {[%emt 0:00:04]} 12. O-O {[%emt 0:01:03]} O-O {[%emt 0:00:08]} 13. Bd3 {[%emt 0:03:48] [#]} g6 $146 {[%emt 0:08:02]} ({Predecessor:} 13... Qd6 14. g3 Rfe8 15. Re1 e5 16. fxe5 Nxe5 17. Nxe5 Rxe5 18. Rxe5 Qxe5 19. Qf3 Re8 {½-½ (44) Aronian,L (2781)-Firouzja,A (2759) chess24.com INT 2021}) 14. g3 {[%emt 0:04:01]} Rfe8 {[%emt 0:11:08]} 15. Kg2 {[%emt 0:08:10]} e5 {[%emt 0:07:21]} 16. fxe5 {[%emt 0:04:40]} (16. Nxe5 {simplifies} Nxe5 17. fxe5 Rxe5 18. Qb3) 16... Nxe5 {[%emt 0:00:09]} 17. Re1 {[%emt 0:05:01]} Nxf3 {[%emt 0:08:53]} 18. Qxf3 {[%emt 0:00:33]} Kg7 {[%emt 0:00:04]} (18... Qb6 {simplifies} 19. Re2 Rxe2 20. Qxe2 Re8) 19. Qf4 {[%emt 0:07:02]} Qb6 {[%emt 0:02:24]} 20. Qd4 {[%emt 0:18:20]} (20. Qb4 {looks sharper.} Re6 21. Rac1 Rae8 22. Red1) 20... Qxd4 {[%emt 0:06:20]} 21. cxd4 {[%emt 0:00:55]} Kf8 {[%emt 0:03:27]} 22. Rxe8+ {[%emt 0:07:31]} Nxe8 $11 {[%emt 0:01:17][%mdl 4096] Endgame KRB-KRN} 23. Re1 {[%emt 0:08:18]} Nc7 {[%emt 0:02:58]} 24. Re5 {[%emt 0:03:02]} Rd8 {[%emt 0:05:50]} 25. Be2 {[%emt 0:00:12]} Rd6 {[%emt 0:00:42]} 26. Bf3 {[%emt 0:00:17]} Rb6 {[%emt 0:00:27]} 27. Re2 {[%emt 0:00:15]} (27. Bxd5 $2 {perishes.} f6 28. Re2 Nxd5 $19) 27... Rc6 {[%emt 0:00:10]} 28. h4 {[%emt 0:00:17]} Rc4 {[%emt 0:00:21]} 29. Rd2 {[%emt 0:00:06]} Ke7 {[%emt 0:00:07]} 30. Be2 {[%emt 0:00:08]} Rc1 {[%emt 0:00:08] An even fight not without its subleties.   Weighted Error Value: White=0.03 (flawless) /Black=0.03 (flawless)} 1/2-1/2

[Event "Bangabandhu Premier Div League 2022"]
[Site "Dhaka"]
[Date "2022.12.04"]
[Round "5.11"]
[White "Mitrabha, Guha"]
[Black "Parveen, Tanima"]
[Result "1-0"]
[ECO "E01"]
[WhiteElo "2474"]
[BlackElo "1967"]
[Annotator "TA"]
[PlyCount "43"]
[EventDate "2022.11.30"]
[EventType "team-tourn"]
[EventCountry "BAN"]
[SourceTitle "playchess.com"]
[Source "ChessBase"]
[SourceQuality "1"]
[TimeControl "40/5400+30:1800+30"]

{[%evp 15,43,15,27,29,54,48,37,42,50,39,63,18,49,41,54,37,172,186,190,171,169,177,178,180,183,204,214,202,239,241]} 1. d4 {[%emt 0:00:05]} d5 {[%emt 0:00:07]} 2. c4 {[%emt 0:00:04]} e6 {[%emt 0:00:07]} 3. Nf3 {[%emt 0:00:06]} Nf6 {[%emt 0:00:26]} 4. g3 {[%emt 0:00:06]} c6 {[%emt 0:00:33]} 5. Bg2 {[%emt 0:00:06]} Bd6 {[%emt 0:00:18]} 6. O-O {[%emt 0:00:10]} Nbd7 {[%emt 0:00:18]} 7. Nc3 {[%emt 0:00:08]} O-O {[%emt 0:00:19]} 8. Nd2 {[%emt 0:00:02]} Bc7 {[%emt 0:17:45]} 9. e4 {[%emt 0:00:27] E01: Catalan: Early deviations.} dxe4 {[%emt 1:15:07]} 10. Ndxe4 {[%emt 0:00:03]} Nxe4 {[%emt 0:00:00]} 11. Nxe4 {[%emt 0:00:02] White is slightly better.} h6 {[%emt 0:00:00]} 12. f4 {[%emt 0:04:41]} Nf6 {[%emt 0:00:00]} 13. Nc3 {[%emt 0:00:23] [#] White is more active.} Qd7 $146 {[%emt 0:00:00]} ({Predecessor:} 13... Bb6 14. c5 Bc7 15. Kh1 Nd5 16. Nxd5 exd5 17. f5 Qf6 18. Bf4 Bxf4 19. Rxf4 Re8 {0-1 (48) Hillarp Persson,T (2557)-Houska,J (2401) Guernsey 2013}) 14. Be3 {[%emt 0:03:22][%cal Bc1e3,Be3a7,Ba7c5][%mdl 32]} Rb8 {[%emt 0:00:00]} 15. g4 {[%emt 0:06:22]} e5 {[%emt 0:00:00] Black cannot hold the game after this.} (15... Qd6 $14) 16. dxe5 {[%emt 0:01:08] White is clearly better.} Nxg4 {[%emt 0:00:00] [#]} 17. Qxd7 $1 {[%emt 0:00:28]} Bxd7 {[%emt 0:00:00]} 18. Bxa7 {[%emt 0:00:04] Hoping for h3.} Ra8 {[%emt 0:00:00]} 19. Bc5 {[%emt 0:00:30] Strongly threatening h3.} Rfe8 {[%emt 0:00:00]} 20. h3 {[%emt 0:01:22]} Ra5 {[%emt 0:00:00]} 21. b4 {[%emt 0:01:04]} Ra3 {[%emt 0:00:00]} 22. Nb1 {[%emt 0:02:57] Weighted Error Value: White=0.05 (flawless) /Black=0.30} 1-0

[Event "Bangabandhu Premier Div League 2022"]
[Site "Dhaka"]
[Date "2022.12.04"]
[Round "5.12"]
[White "Harikrishnan.A.Ra"]
[Black "Chatterjee, Debaraj"]
[Result "1-0"]
[ECO "A48"]
[WhiteElo "2409"]
[BlackElo "2196"]
[Annotator "TA"]
[PlyCount "81"]
[EventDate "2022.11.30"]
[EventType "team-tourn"]
[EventCountry "BAN"]
[SourceTitle "playchess.com"]
[Source "ChessBase"]
[SourceQuality "1"]
[TimeControl "40/5400+30:1800+30"]

{[%evp 16,81,22,3,39,50,51,27,29,0,64,39,42,35,27,35,41,36,36,0,0,8,29,34,30,31,35,25,16,0,96,103,114,86,129,92,129,116,161,140,180,174,179,179,232,221,210,185,243,230,273,278,292,288,343,292,342,259,342,317,501,502,556,562,856,779,782,782]} 1. d4 {[%emt 0:00:06]} Nf6 {[%emt 0:02:24]} 2. Nf3 {[%emt 0:00:19]} g6 {[%emt 0:00:20]} 3. Bf4 {[%emt 0:00:15]} Bg7 {[%emt 0:00:20]} 4. e3 {[%emt 0:00:08]} O-O {[%emt 0:00:18]} 5. Be2 {[%emt 0:00:07]} d6 {[%emt 0:00:46]} 6. h3 {[%emt 0:00:03]} Nc6 {[%emt 0:03:23]} 7. Bh2 {[%emt 0:00:25]} Nd7 {[%emt 0:01:15]} 8. O-O {[%emt 0:05:27]} e5 {[%emt 0:00:25]} 9. c4 {[%emt 0:04:16]} f5 {[%emt 0:08:14] A48: 1 d4 Nf6 2 Nf3 g6: Torre, London and Colle Systems.} 10. Nc3 {[%emt 0:05:50]} g5 {[%emt 0:05:50]} 11. d5 {[%emt 0:03:40] Against g4} Ncb8 {[%emt 0:02:46] White has an edge.} 12. Nd2 {[%emt 0:04:33] [#]} f4 $146 {[%emt 0:20:07]} ({Black should try} 12... a5 $11) ({Predecessor:} 12... Nf6 13. c5 Rf7 14. Nc4 Bf8 15. f3 h5 16. Qc2 Na6 17. cxd6 cxd6 18. a3 h4 {1-0 (46) Poluektov,Y (2346)-Martiyan,A (2157) Alushta 2008}) 13. Nde4 {[%emt 0:03:26]} h6 {[%emt 0:00:37]} 14. b4 {[%emt 0:15:38]} Nf6 {[%emt 0:12:41]} 15. c5 {[%emt 0:09:29]} Nxe4 {[%emt 0:00:51]} 16. Nxe4 {[%emt 0:00:04]} Bf5 {[%emt 0:00:12] Inhibits Bg4.} 17. Bd3 {[%emt 0:01:53]} a5 {[%emt 0:05:45]} 18. b5 {[%emt 0:07:13]} Bxe4 {[%emt 0:04:31]} 19. Bxe4 {[%emt 0:00:49] And now c6 would win.} Nd7 $1 {[%emt 0:03:40]} 20. c6 {[%emt 0:11:06]} Nc5 {[%emt 0:03:58]} 21. cxb7 {[%emt 0:00:18]} Rb8 {[%emt 0:02:00]} 22. Qc2 {[%emt 0:00:38]} (22. Bg6 {looks sharper.} a4 23. Rb1 Rxb7 24. Qh5) 22... Rxb7 {[%emt 0:01:39] [#]} (22... a4 $1 $11) 23. a4 $1 $16 {[%emt 0:00:28] Black is on the road to losing.} Qd7 {[%emt 0:01:01]} 24. Ra3 {[%emt 0:02:21][%cal Ba1a3,Ba3c3,Bc3c4][%mdl 32]} Rbb8 {[%emt 0:02:13]} 25. Rc3 {[%emt 0:04:14]} Rf6 {[%emt 0:01:24]} 26. Bf3 {[%emt 0:02:40][%cal Be4f3,Bf3g4,Bg4f5][%mdl 32]} Bf8 {[%emt 0:01:04]} 27. Bg4 {[%emt 0:02:25]} Qg7 {[%emt 0:02:19]} 28. e4 {[%emt 0:16:39]} Qg6 {[%emt 0:03:26]} 29. Bf5 {[%emt 0:00:00]} Qe8 {[%emt 0:00:24]} (29... Qg7 {keeps fighting.} 30. f3 Be7) 30. Rc4 {[%emt 0:00:00]} Ra8 {[%emt 0:03:12]} 31. Rb1 {[%emt 0:00:00]} Qb8 {[%emt 0:00:10]} (31... Rxf5 $142 32. exf5 e4) 32. Kh1 {[%emt 0:00:00]} Qb6 {[%emt 0:01:24]} 33. f3 {[%emt 0:00:00]} Be7 {[%emt 0:02:37]} 34. Bg1 {[%emt 0:00:00]} Bf8 {[%emt 0:02:43]} 35. Rd1 {[%emt 0:00:00]} Kg7 {[%emt 0:00:55]} 36. Bg4 {[%emt 0:00:00]} Rd8 {[%emt 0:00:13]} 37. Qc3 {[%emt 0:00:00]} Re8 {[%emt 0:02:00]} (37... Kh8 {might work better.} 38. Bh5 Be7 39. Bxc5 dxc5 40. Qxe5 Bf8) 38. Bh5 $18 {[%emt 0:00:00] White is clearly winning.} Rg6 {[%emt 0:01:42]} 39. Rc1 {[%emt 0:00:00]} Kf6 {[%emt 0:00:29]} 40. Bxc5 {[%emt 0:00:00]} dxc5 {[%emt 0:00:02]} 41. Rxc5 {[%emt 0:26:28] Weighted Error Value: White=0.14 (very precise) /Black=0.34} 1-0